bitfinex/quotes_BTCUSD_20240721
["timestamp","ask_amount","ask_price","bid_price","bid_amount"]
[1721536464494,1.76425603,67168.0,67167.0,0.066224]
[1721536464697,1.76425603,67168.0,67167.0,0.000924]
[1721536465538,1.85293248,67168.0,67167.0,0.000924]
[1721536466398,1.29593298,67168.0,67167.0,0.139524]
[1721536466596,1.20869846,67168.0,67167.0,0.139524]
[1721536467885,0.97049046,67168.0,67167.0,0.139524]
[1721536468093,0.94720174,67168.0,67167.0,0.139524]
[1721536468725,0.028,67168.0,67167.0,0.139524]
[1721536468943,0.216404,67168.0,67167.0,0.139524]
[1721536469151,0.216404,67168.0,67167.0,0.15061458]
[1721536469769,0.202404,67168.0,67167.0,0.15061458]
[1721536470385,0.440612,67168.0,67167.0,0.15061458]
[1721536470591,0.554612,67168.0,67167.0,0.15061458]
[1721536471012,0.540612,67168.0,67167.0,0.15061458]
[1721536471218,0.526612,67168.0,67167.0,0.15061458]
[1721536471428,0.535612,67168.0,67167.0,0.15061458]
[1721536471842,1.0894087,67168.0,67167.0,0.15061458]
[1721536472045,1.0894087,67168.0,67167.0,0.139524]
[1721536472711,1.026028,67168.0,67167.0,0.139524]
[1721536472905,1.012028,67168.0,67167.0,0.139524]
[1721536473258,1.024028,67168.0,67167.0,0.139524]
[1721536473461,1.015028,67168.0,67167.0,0.139524]
[1721536473895,1.027028,67168.0,67167.0,0.139524]
[1721536480417,0.124,67168.0,67167.0,0.139524]
[1721536480646,0.024,67168.0,67167.0,0.45945053]
[1721536480825,0.024,67168.0,67167.0,0.4705151]
[1721536481467,0.012,67168.0,67167.0,0.4705151]
[1721536481696,0.012,67168.0,67167.0,0.86310884]
[1721536481900,0.012,67168.0,67167.0,1.10132084]
[1721536481901,0.016,67168.0,67167.0,1.10132084]
[1721536482315,0.004,67168.0,67167.0,1.10132084]
[1721536482735,0.008,67168.0,67167.0,1.10132084]
[1721536482940,0.008,67168.0,67167.0,1.1013043]
[1721536484076,0.008,67168.0,67167.0,1.1513043]
[1721536485238,0.008,67168.0,67167.0,1.1013043]
[1721536485505,0.008,67168.0,67167.0,1.1513043]
[1721536485978,0.1,67179.0,67174.0,0.1369]
[1721536486220,0.1,67179.0,67178.0,0.21987479]
[1721536486728,0.1,67179.0,67178.0,0.230896]
[1721536487434,0.116,67179.0,67178.0,0.230896]
[1721536487714,0.1,67179.0,67178.0,0.588155]
[1721536487973,0.1,67179.0,67178.0,0.47359994]
[1721536487974,0.004,67179.0,67178.0,0.47359994]
[1721536488186,0.008,67179.0,67178.0,0.47359994]
[1721536488393,0.008,67179.0,67178.0,0.71177294]
[1721536488599,0.004,67179.0,67178.0,0.71177294]
[1721536488810,0.005,67179.0,67178.0,0.71177294]
[1721536489259,0.001,67179.0,67178.0,0.71177294]
[1721536489476,0.001,67179.0,67178.0,0.71176702]
[1721536489678,0.001,67179.0,67178.0,0.47359402]
[1721536489884,0.001,67179.0,67178.0,0.349982]
[1721536490093,0.001,67179.0,67178.0,0.47359582]
[1721536490302,0.001,67179.0,67178.0,0.28133503]
[1721536490729,0.18922,67182.0,67179.0,0.1427]
[1721536490938,0.18922,67182.0,67179.0,0.0807]
[1721536491142,0.17922,67182.0,67181.0,0.0807]
[1721536491350,0.27922,67182.0,67181.0,0.1427]
[1721536491586,0.517379,67182.0,67181.0,0.15371482]
[1721536492823,0.521379,67182.0,67181.0,0.15371482]
[1721536493249,0.521379,67182.0,67181.0,0.1427]
[1721536493458,0.521379,67182.0,67181.0,0.15371482]
[1721536493664,0.28322,67182.0,67181.0,0.15371482]
[1721536494071,0.28722,67182.0,67181.0,0.15371482]
[1721536495524,0.22708,67182.0,67181.0,0.15371482]
[1721536496576,0.22708,67182.0,67181.0,0.27732848]
[1721536496778,0.22308,67182.0,67181.0,0.27732848]
[1721536497186,0.22708,67182.0,67181.0,0.27732848]
[1721536497835,0.22308,67182.0,67181.0,0.27732848]
[1721536498062,0.22708,67182.0,67181.0,0.27732848]
[1721536498462,0.22308,67182.0,67181.0,0.27732848]
[1721536498815,0.22708,67182.0,67181.0,0.27732848]
[1721536499023,0.22708,67182.0,67181.0,0.27732864]
[1721536499393,0.22708,67182.0,67181.0,0.15371482]
[1721536499804,0.22708,67182.0,67181.0,0.27732699]
[1721536501703,0.22708,67182.0,67181.0,0.27732998]
[1721536502137,0.108,67182.0,67181.0,0.27732998]
[1721536502349,0.008,67182.0,67181.0,0.27732998]
[1721536502559,0.108,67182.0,67181.0,0.27732998]
[1721536503015,0.104,67182.0,67181.0,0.27732998]
[1721536503571,0.1,67182.0,67181.0,0.27732998]
[1721536503787,0.104,67182.0,67181.0,0.27732998]
[1721536504001,0.107,67182.0,67181.0,0.27732998]
[1721536504244,0.103,67182.0,67181.0,0.27732998]
[1721536504446,0.106,67182.0,67181.0,0.27732998]
[1721536504649,0.106,67182.0,67181.0,0.15371482]
[1721536504869,0.106,67182.0,67181.0,0.27732998]
[1721536507887,0.225079,67182.0,67181.0,0.27732998]
[1721536510281,0.106,67182.0,67181.0,0.27732998]
[1721536511125,0.103,67182.0,67181.0,0.27732998]
[1721536511360,0.103,67182.0,67181.0,0.27732853]
[1721536511519,0.106,67182.0,67181.0,0.27732853]
[1721536511762,0.106,67182.0,67181.0,0.27732891]
[1721536512593,0.103,67182.0,67181.0,0.27732891]
[1721536512792,0.1,67182.0,67181.0,0.27732891]
[1721536513289,0.102,67182.0,67181.0,0.27732891]
[1721536513674,0.105,67182.0,67181.0,0.27732891]
[1721536513907,0.102,67182.0,67181.0,0.27732891]
[1721536514329,0.222079,67182.0,67181.0,0.15371482]
[1721536514557,0.222079,67182.0,67181.0,0.27732887]
[1721536514964,0.221079,67182.0,67181.0,0.27732887]
[1721536515169,0.221079,67182.0,67181.0,0.27510415]
[1721536515374,0.222079,67182.0,67181.0,0.27510415]
[1721536515991,0.220079,67182.0,67181.0,0.27510415]
[1721536516370,0.222079,67182.0,67181.0,0.27510415]
[1721536517414,0.222079,67182.0,67181.0,0.1514901]
[1721536517618,0.222079,67182.0,67181.0,0.27510447]
[1721536520728,0.222079,67182.0,67181.0,0.27510446]
[1721536522843,0.936556,67182.0,67181.0,0.13462918]
[1721536524047,0.936556,67182.0,67181.0,0.13463508]
[1721536527134,0.936556,67182.0,67181.0,0.13463618]
[1721536531896,0.936556,67182.0,67181.0,0.14298287]
[1721536533154,0.698397,67182.0,67181.0,0.14298287]
[1721536533594,0.698397,67182.0,67181.0,0.01936151]
[1721536533813,0.698397,67182.0,67181.0,0.14298225]
[1721536534254,0.698397,67182.0,67181.0,0.14298224]
[1721536535436,0.698397,67182.0,67181.0,0.20698224]
[1721536536720,0.460238,67182.0,67181.0,0.20698224]
[1721536539859,0.458238,67182.0,67181.0,0.20698224]
[1721536540057,0.458238,67182.0,67181.0,0.20697816]
[1721536540222,0.460238,67182.0,67181.0,0.20697816]
[1721536540628,0.459238,67182.0,67181.0,0.20697816]
[1721536541039,0.460238,67182.0,67181.0,0.20697816]
[1721536541584,0.103,67182.0,67181.0,0.28297816]
[1721536541716,0.003,67182.0,67181.0,0.28297816]
[1721536542158,0.002,67182.0,67181.0,0.28297816]
[1721536542352,0.119074,67185.0,67181.0,0.28297816]
[1721536542353,0.1,67184.0,67181.0,0.28297816]
[1721536542561,0.1,67184.0,67182.0,0.12641065]
[1721536542712,0.1,67184.0,67183.0,0.14295441]
[1721536543306,0.1,67184.0,67183.0,0.14295262]
[1721536543478,0.1,67184.0,67183.0,0.28295262]
[1721536543643,0.16358771,67188.0,67183.0,0.28295262]
[1721536543644,0.1,67187.0,67183.0,0.28295262]
[1721536543840,0.1,67187.0,67186.0,0.07717479]
[1721536544038,0.1,67187.0,67186.0,0.20078965]
[1721536544039,0.21907,67187.0,67186.0,0.20078965]
[1721536544243,0.21907,67187.0,67186.0,0.22012064]
[1721536545331,0.22307,67187.0,67186.0,0.22012064]
[1721536546012,0.22707,67187.0,67186.0,0.22012064]
[1721536546358,0.22707,67187.0,67186.0,0.09650578]
[1721536546558,0.22707,67187.0,67186.0,0.22011957]
[1721536547967,0.22707,67187.0,67186.0,0.14294478]
[1721536548186,0.22707,67187.0,67186.0,0.12361379]
[1721536548454,0.465211,67187.0,67186.0,0.12361379]
[1721536548837,0.465211,67187.0,67186.0,0.12286401]
[1721536549582,0.119075,67185.0,67183.0,0.14]
[1721536549790,0.219075,67184.0,67183.0,0.14]
[1721536550003,0.219075,67184.0,67183.0,0.064]
[1721536551250,0.1,67184.0,67183.0,0.064]
[1721536551454,0.1,67184.0,67183.0,0.08333776]
[1721536551654,0.219075,67184.0,67183.0,0.08333776]
[1721536552253,0.219075,67184.0,67183.0,0.064]
[1721536552876,0.220075,67184.0,67183.0,0.064]
[1721536553899,0.220075,67184.0,67183.0,0.08333776]
[1721536555343,0.537826,67184.0,67183.0,0.01933776]
[1721536555752,0.119079,67182.0,67181.0,0.000924]
[1721536555982,0.219079,67182.0,67181.0,0.003718]
[1721536556598,0.219079,67182.0,67181.0,0.000924]
[1721536556787,0.219079,67182.0,67181.0,0.12453547]
[1721536557078,0.219079,67182.0,67181.0,0.12653547]
[1721536558307,0.219079,67182.0,67181.0,0.12853547]
[1721536558716,0.219079,67182.0,67181.0,0.12453547]
[1721536559129,0.219079,67182.0,67181.0,0.12553547]
[1721536559667,0.457238,67182.0,67181.0,0.000924]
[1721536559868,0.457238,67182.0,67181.0,0.12453547]
[1721536560521,1.083456,67182.0,67181.0,0.12453547]
[1721536561551,1.083456,67182.0,67181.0,0.12454462]
[1721536561898,1.082456,67182.0,67181.0,0.12454462]
[1721536562101,1.088456,67182.0,67181.0,0.12554462]
[1721536562314,1.083456,67182.0,67181.0,0.12454462]
[1721536564371,1.20941305,67182.0,67181.0,0.12454462]
[1721536564587,1.083456,67182.0,67181.0,0.000924]
[1721536564848,1.083456,67182.0,67181.0,0.12454461]
[1721536571088,1.083456,67182.0,67181.0,0.12454475]
[1721536571581,1.083456,67182.0,67181.0,0.12454836]
[1721536572194,1.12743653,67182.0,67181.0,0.12454836]
[1721536574194,1.12743653,67182.0,67181.0,0.12454825]
[1721536574915,1.083456,67182.0,67181.0,0.12454825]
[1721536577458,1.083456,67182.0,67181.0,0.12454912]
[1721536580163,1.47599674,67182.0,67181.0,0.12454912]
[1721536580371,1.47599674,67182.0,67181.0,0.000924]
[1721536580576,1.47599674,67182.0,67181.0,0.12454936]
[1721536580805,1.47599674,67182.0,67181.0,0.000924]
[1721536580978,1.47599674,67182.0,67181.0,0.12455054]
[1721536581576,1.63034631,67182.0,67181.0,0.12455054]
[1721536581804,1.69474631,67182.0,67181.0,0.12455054]
[1721536582150,1.7614909,67182.0,67181.0,0.000924]
[1721536582316,1.71803666,67182.0,67181.0,0.000924]
[1721536583284,1.73003666,67182.0,67181.0,0.001924]
[1721536583511,1.72903666,67182.0,67181.0,0.001924]
[1721536583719,1.74103666,67182.0,67181.0,0.001924]
[1721536584332,1.8077551,67182.0,67181.0,0.001924]
[1721536585909,1.74103666,67182.0,67181.0,0.001924]
[1721536587153,1.80773361,67182.0,67181.0,0.001924]
[1721536587972,1.74103666,67182.0,67181.0,0.001924]
[1721536589221,1.80772121,67182.0,67181.0,0.001924]
[1721536589651,1.74103666,67182.0,67181.0,0.001924]
[1721536590505,1.82994777,67182.0,67181.0,0.001924]
[1721536591340,1.74103666,67182.0,67181.0,0.001924]
[1721536592726,1.13522809,67182.0,67181.0,0.001924]
[1721536592926,0.719397,67182.0,67181.0,0.140824]
[1721536593285,0.719397,67182.0,67181.0,0.26444626]
[1721536593637,0.719397,67182.0,67181.0,0.28381356]
[1721536596074,0.719397,67182.0,67181.0,0.1601913]
[1721536596254,0.719397,67182.0,67181.0,0.28380788]
[1721536598081,0.707397,67182.0,67181.0,0.28280788]
[1721536598252,0.718397,67182.0,67181.0,0.28380788]
[1721536599133,0.706397,67182.0,67181.0,0.28380788]
[1721536599340,0.706397,67182.0,67181.0,0.1601913]
[1721536599532,0.695397,67182.0,67181.0,0.28280557]
[1721536599947,0.698397,67182.0,67181.0,0.28280557]
[1721536600121,0.709397,67182.0,67181.0,0.28380557]
[1721536600334,0.712397,67182.0,67181.0,0.28380557]
[1721536600523,0.706397,67182.0,67181.0,0.28380557]
[1721536600828,0.695397,67182.0,67181.0,0.28280557]
[1721536601026,0.701397,67182.0,67181.0,0.28280557]
[1721536601228,0.460238,67182.0,67181.0,0.28280557]
[1721536601811,0.103,67182.0,67181.0,0.28280557]
[1721536602021,0.222079,67182.0,67181.0,0.28280557]
[1721536602190,0.219079,67182.0,67181.0,0.28280557]
[1721536602577,0.220079,67182.0,67181.0,0.28280557]
[1721536603196,0.219079,67182.0,67181.0,0.28280557]
[1721536603574,0.1,67182.0,67181.0,0.28280557]
[1721536603769,0.00084,67186.0,67181.0,0.14590557]
[1721536603969,0.00084,67186.0,67185.0,0.21777479]
[1721536603970,0.119912,67186.0,67185.0,0.21777479]
[1721536604177,0.119912,67186.0,67185.0,0.34138906]
[1721536604384,0.219912,67186.0,67185.0,0.3588275]
[1721536605083,0.219912,67186.0,67185.0,0.01743844]
[1721536605084,0.934344,67186.0,67185.0,0.01743844]
[1721536605467,0.934344,67186.0,67181.0,0.002924]
[1721536605468,0.595397,67182.0,67181.0,0.002924]
[1721536605785,0.764697,67182.0,67181.0,0.002924]
[1721536605990,0.764697,67182.0,67181.0,0.12654625]
[1721536606195,1.002856,67182.0,67181.0,0.000924]
[1721536606405,1.11412645,67182.0,67181.0,0.01837147]
[1721536606649,1.012856,67182.0,67181.0,0.001924]
[1721536606834,1.012856,67182.0,67181.0,0.12554604]
[1721536607041,1.012856,67182.0,67181.0,0.01837147]
[1721536607252,1.021856,67182.0,67181.0,0.001924]
[1721536607452,1.031856,67182.0,67181.0,0.002924]
[1721536607881,1.021856,67182.0,67181.0,0.001924]
[1721536608083,1.021856,67182.0,67181.0,0.002924]
[1721536608284,1.030856,67182.0,67181.0,0.002924]
[1721536608462,1.030856,67182.0,67181.0,0.1265462]
[1721536609646,1.030856,67182.0,67181.0,0.002924]
[1721536619252,1.030856,67182.0,67181.0,0.12654882]
[1721536621155,1.030856,67182.0,67181.0,0.12432046]
[1721536621494,1.030856,67182.0,67181.0,0.14175874]
[1721536621694,1.030856,67182.0,67181.0,0.12432046]
[1721536621895,1.030856,67182.0,67181.0,0.14175874]
[1721536622104,1.030856,67182.0,67181.0,0.12432046]
[1721536622335,1.030856,67182.0,67181.0,0.14175874]
[1721536622573,1.030856,67182.0,67181.0,0.13981243]
[1721536624177,1.110356,67182.0,67181.0,0.13981243]
[1721536624392,1.68893685,67182.0,67181.0,0.01618761]
[1721536624620,1.71222705,67182.0,67181.0,0.00069564]
[1721536625026,1.80118518,67182.0,67181.0,0.00069564]
[1721536626215,1.71222705,67182.0,67181.0,0.00069564]
[1721536629236,1.59088694,67182.0,67181.0,0.00069564]
[1721536629441,1.59288871,67182.0,67181.0,0.00069564]
[1721536629673,1.51338871,67182.0,67181.0,0.00069564]
[1721536629877,0.723397,67182.0,67181.0,0.06679564]
[1721536630222,0.792697,67182.0,67181.0,0.26661891]
[1721536630432,0.147079,67182.0,67181.0,0.26661682]
[1721536630663,0.147079,67182.0,67181.0,0.28212247]
[1721536631070,0.385238,67182.0,67181.0,0.28212247]
[1721536631586,0.454538,67182.0,67181.0,0.28212247]
[1721536631794,0.692697,67182.0,67181.0,0.28212247]
[1721536632431,0.792697,67182.0,67181.0,0.28212247]
[1721536633488,0.792697,67182.0,67181.0,0.15850129]
[1721536633683,0.792697,67182.0,67181.0,0.28211781]
[1721536633923,0.792697,67182.0,67181.0,0.26661216]
[1721536634131,0.792697,67182.0,67181.0,0.28210976]
[1721536636248,0.8959491,67182.0,67181.0,0.20590976]
[1721536636437,1.1341081,67182.0,67181.0,0.13980976]
[1721536636652,1.1341081,67182.0,67181.0,0.00069564]
[1721536637208,1.030856,67182.0,67181.0,0.00069564]
[1721536637411,1.3691193,67182.0,67181.0,0.00069564]
[1721536637815,1.32463774,67182.0,67181.0,0.00069564]
[1721536637995,1.36912225,67182.0,67181.0,0.00069564]
[1721536638229,1.34792779,67182.0,67181.0,0.00069564]
[1721536638609,1.50227736,67182.0,67181.0,0.00069564]
[1721536639038,1.74043636,67182.0,67181.0,0.00069564]
[1721536642382,1.80715031,67182.0,67181.0,0.00069564]
[1721536642581,1.74043636,67182.0,67181.0,0.00069564]
[1721536642773,1.80715035,67182.0,67181.0,0.00069564]
[1721536642971,1.8071503,67182.0,67181.0,0.00069564]
[1721536643426,0.83363,67176.0,67175.0,0.0013003]
[1721536643674,0.90293,67176.0,67175.0,0.0168173]
[1721536643874,0.90293,67176.0,67174.0,0.07717479]
[1721536643875,0.595457,67175.0,67174.0,0.07717479]
[1721536644118,0.595457,67175.0,67174.0,0.20081165]
[1721536644496,0.93364,67175.0,67174.0,0.09269405]
[1721536644951,0.93364,67175.0,67174.0,0.07717479]
[1721536645159,0.93364,67175.0,67174.0,0.09269405]
[1721536645996,0.93364,67175.0,67174.0,0.07717479]
[1721536646326,0.99992689,67175.0,67174.0,0.07717479]
[1721536646528,0.93464,67175.0,67174.0,0.07717479]
[1721536647386,0.93564,67175.0,67174.0,0.07717479]
[1721536648565,0.93564,67175.0,67174.0,0.07809879]
[1721536649362,1.46840474,67175.0,67174.0,0.000924]
[1721536649583,1.62275431,67175.0,67174.0,0.000924]
[1721536649792,1.71275185,67175.0,67174.0,0.000924]
[1721536650009,1.73498665,67175.0,67174.0,0.000924]
[1721536650432,1.73398665,67175.0,67174.0,0.000924]
[1721536650640,1.73998665,67175.0,67174.0,0.001924]
[1721536650845,1.73898665,67175.0,67174.0,0.001924]
[1721536651055,1.73298665,67175.0,67174.0,0.000924]
[1721536651258,1.64404744,67175.0,67174.0,0.000924]
[1721536651459,1.65004744,67175.0,67174.0,0.001924]
[1721536652595,1.65886961,67175.0,67174.0,0.001924]
[1721536653014,1.66386961,67175.0,67174.0,0.001924]
[1721536653478,1.72553477,67175.0,67174.0,0.001924]
[1721536653886,1.73053477,67175.0,67174.0,0.001924]
[1721536655813,1.66386961,67175.0,67174.0,0.001924]
[1721536656018,1.73052046,67175.0,67174.0,0.001924]
[1721536656641,1.58317089,67175.0,67174.0,0.001924]
[1721536657318,1.51652004,67175.0,67174.0,0.001924]
[1721536658357,1.50872004,67175.0,67174.0,0.001924]
[1721536658521,1.51622004,67175.0,67174.0,0.001924]
[1721536661556,1.53734414,67175.0,67174.0,0.001924]
[1721536661963,1.49292691,67175.0,67174.0,0.001924]
[1721536662161,1.53734337,67175.0,67174.0,0.001924]
[1721536662769,1.39044337,67175.0,67174.0,0.001924]
[1721536662967,1.61409294,67175.0,67174.0,0.001924]
[1721536663206,1.75349294,67175.0,67174.0,0.001924]
[1721536664194,1.73237047,67175.0,67174.0,0.001924]
[1721536664501,1.70907648,67175.0,67174.0,0.001924]
[1721536665489,1.73237066,67175.0,67174.0,0.001924]
[1721536665686,1.70907648,67175.0,67174.0,0.001924]
[1721536666336,1.73237066,67175.0,67174.0,0.001924]
[1721536666470,2.03717326,67175.0,67174.0,0.001924]
[1721536666654,1.97055366,67175.0,67174.0,0.001924]
[1721536667282,1.95955366,67175.0,67174.0,0.000924]
[1721536667494,1.97255366,67175.0,67174.0,0.000924]
[1721536667682,1.98655366,67175.0,67174.0,0.000924]
[1721536668084,1.97355366,67175.0,67174.0,0.000924]
[1721536668350,2.07755366,67175.0,67174.0,0.000924]
[1721536668530,2.16637356,67175.0,67174.0,0.000924]
[1721536668731,2.07637356,67175.0,67174.0,0.000924]
[1721536668943,1.98755366,67175.0,67174.0,0.000924]
[1721536669279,2.07637218,67175.0,67174.0,0.000924]
[1721536669430,2.14037218,67175.0,67174.0,0.000924]
[1721536669659,2.28037218,67175.0,67174.0,1e-06]
[1721536669864,2.22379136,67175.0,67174.0,1e-06]
[1721536670535,2.13379136,67175.0,67174.0,1e-06]
[1721536671306,2.22379136,67175.0,67174.0,1e-06]
[1721536671504,2.13379136,67175.0,67174.0,1e-06]
[1721536671703,2.08379128,67175.0,67174.0,1e-06]
[1721536672330,2.13379128,67175.0,67174.0,1e-06]
[1721536673076,2.22379128,67175.0,67174.0,1e-06]
[1721536674957,2.22379111,67175.0,67174.0,1e-06]
[1721536676668,2.17379111,67175.0,67174.0,1e-06]
[1721536677055,2.22379111,67175.0,67174.0,1e-06]
[1721536677825,2.17379111,67175.0,67174.0,1e-06]
[1721536678026,2.17379023,67175.0,67174.0,1e-06]
[1721536679089,2.22379023,67175.0,67174.0,1e-06]
[1721536679991,2.21455366,67175.0,67174.0,1e-06]
[1721536680198,2.2237897,67175.0,67174.0,1e-06]
[1721536680811,2.21455366,67175.0,67174.0,1e-06]
[1721536681031,2.2237897,67175.0,67174.0,1e-06]
[1721536681442,2.22379018,67175.0,67174.0,1e-06]
[1721536682319,2.17379018,67175.0,67174.0,1e-06]
[1721536682949,2.17463018,67175.0,67174.0,1e-06]
[1721536683671,2.17463017,67175.0,67174.0,1e-06]
[1721536684907,2.22463017,67175.0,67174.0,1e-06]
[1721536686610,2.17463017,67175.0,67174.0,1e-06]
[1721536687677,1.5926976,67175.0,67174.0,0.144901]
[1721536688082,1.58346109,67175.0,67174.0,0.144901]
[1721536688874,1.63346109,67175.0,67174.0,0.144901]
[1721536689100,1.58346109,67175.0,67174.0,0.144901]
[1721536689294,1.58346109,67175.0,67174.0,0.14143163]
[1721536689509,1.54346109,67175.0,67174.0,0.06043163]
[1721536689709,1.49346109,67175.0,67174.0,0.06043163]
[1721536690780,1.42416109,67175.0,67174.0,0.06043163]
[1721536690959,1.47046109,67175.0,67174.0,0.14143163]
[1721536691327,1.60769738,67175.0,67174.0,0.14143163]
[1721536692309,1.34340855,67175.0,67174.0,0.14143163]
[1721536692557,1.16297809,67175.0,67174.0,0.14143163]
[1721536692730,1.32118395,67175.0,67174.0,0.14143163]
[1721536693320,1.23227809,67175.0,67174.0,0.14143163]
[1721536693520,1.32119409,67175.0,67174.0,0.14143163]
[1721536695811,1.25189409,67175.0,67174.0,0.14143163]
[1721536696015,1.29898154,67175.0,67174.0,0.14143163]
[1721536696629,1.19027809,67175.0,67174.0,0.14143163]
[1721536696839,1.262158,67175.0,67174.0,0.14143163]
[1721536697043,1.276158,67175.0,67174.0,0.14143163]
[1721536697215,1.17216174,67175.0,67174.0,0.14143163]
[1721536697428,0.710297,67175.0,67174.0,0.14143163]
[1721536697632,0.792597,67175.0,67174.0,0.14143163]
[1721536697999,0.778597,67175.0,67174.0,0.14143163]
[1721536698571,0.791597,67175.0,67174.0,0.14143163]
[1721536705345,0.553414,67175.0,67174.0,0.14143163]
[1721536706614,0.315231,67175.0,67174.0,0.14143163]
[1721536706844,0.02684,67175.0,67174.0,0.14143163]
[1721536707128,0.02684,67175.0,67174.0,0.39908269]
[1721536707326,0.01384,67175.0,67174.0,0.27998969]
[1721536707815,0.01384,67175.0,67174.0,0.35716448]
[1721536707816,0.02184,67175.0,67174.0,0.35716448]
[1721536708069,0.00084,67175.0,67174.0,0.35716448]
[1721536708301,0.00984,67175.0,67174.0,0.35716448]
[1721536708527,0.00984,67175.0,67174.0,0.71444448]
[1721536709026,0.00184,67175.0,67174.0,0.71544448]
[1721536709275,0.00184,67175.0,67174.0,0.59180822]
[1721536709485,0.00184,67175.0,67174.0,0.71543222]
[1721536712530,0.00184,67175.0,67174.0,0.59180822]
[1721536712698,0.00184,67175.0,67174.0,0.71543222]
[1721536713124,0.00184,67175.0,67174.0,0.28097743]
[1721536713883,0.6282281,67175.0,67174.0,0.15735343]
[1721536714053,0.83548,67175.0,67174.0,0.15735343]
[1721536714439,0.83548,67175.0,67174.0,0.14243163]
[1721536714648,0.83448,67175.0,67174.0,0.14143163]
[1721536714827,0.84048,67175.0,67174.0,0.14143163]
[1721536715035,0.84748,67175.0,67174.0,0.14143163]
[1721536715428,0.84148,67175.0,67174.0,0.14143163]
[1721536715624,0.84748,67175.0,67174.0,0.14143163]
[1721536716418,0.119104,67168.0,67167.0,0.082124]
[1721536716638,0.188404,67168.0,67167.0,0.20575695]
[1721536716870,0.188404,67168.0,67167.0,0.28186342]
[1721536717323,0.426612,67168.0,67167.0,0.28186342]
[1721536717554,0.426612,67168.0,67167.0,0.28586342]
[1721536717773,0.426612,67168.0,67167.0,0.28386342]
[1721536718010,0.426612,67168.0,67167.0,0.28186342]
[1721536718234,0.426612,67168.0,67167.0,0.28586342]
[1721536719374,0.426612,67168.0,67167.0,0.28586622]
[1721536720280,0.426612,67168.0,67167.0,0.28386622]
[1721536720763,0.431612,67168.0,67167.0,0.28186622]
[1721536721196,0.436612,67168.0,67167.0,0.28186622]
[1721536722087,0.436612,67168.0,67167.0,0.15823047]
[1721536722283,0.436612,67168.0,67167.0,0.2818662]
[1721536722484,0.67482,67168.0,67167.0,0.2006662]
[1721536723628,0.67482,67168.0,67167.0,0.35904099]
[1721536723629,0.01,67168.0,67167.0,0.35904099]
[1721536723826,0.129104,67168.0,67167.0,0.35904099]
[1721536724231,0.367312,67168.0,67167.0,0.35904099]
[1721536725284,0.367312,67168.0,67167.0,0.23540526]
[1721536725495,0.367312,67168.0,67167.0,0.3590413]
[1721536734994,0.367312,67168.0,67167.0,0.23540526]
[1721536735234,0.367312,67168.0,67167.0,0.35904132]
[1721536738264,0.367312,67168.0,67167.0,0.23540526]
[1721536738464,0.367312,67168.0,67167.0,0.35904134]
[1721536739203,0.129104,67168.0,67167.0,0.35904134]
[1721536739430,0.01,67168.0,67167.0,0.35904134]
[1721536740040,0.005,67168.0,67167.0,0.35904134]
[1721536740251,0.005,67168.0,67167.0,0.23540526]
[1721536740456,0.01,67168.0,67167.0,0.35904058]
[1721536740865,0.124104,67168.0,67167.0,0.35904058]
[1721536741069,0.124104,67168.0,67167.0,0.23540526]
[1721536741223,0.120104,67168.0,67167.0,0.35904092]
[1721536741830,0.125104,67168.0,67167.0,0.35904092]
[1721536742460,0.119104,67168.0,67167.0,0.35904092]
[1721536742908,0.121104,67168.0,67167.0,0.35904092]
[1721536743850,0.121104,67168.0,67167.0,0.35904094]
[1721536746111,0.120104,67168.0,67167.0,0.35904094]
[1721536746285,0.119104,67168.0,67167.0,0.35904094]
[1721536746470,0.119104,67168.0,67167.0,0.36004094]
[1721536747867,0.357312,67168.0,67167.0,0.27884094]
[1721536748304,0.357312,67168.0,67167.0,0.20166615]
[1721536749933,0.59552,67168.0,67167.0,0.20166615]
[1721536750438,0.59552,67168.0,67167.0,0.20166976]
[1721536751874,0.59552,67168.0,67167.0,0.07803047]
[1721536752282,0.59552,67168.0,67167.0,0.2788452]
[1721536752891,0.59552,67168.0,67167.0,0.2778452]
[1721536753103,0.59652,67168.0,67167.0,0.2778452]
[1721536753476,0.59752,67168.0,67167.0,0.2778452]
[1721536753707,0.59752,67168.0,67167.0,0.15420526]
[1721536753905,0.59752,67168.0,67167.0,0.27784627]
[1721536754237,0.59652,67168.0,67167.0,0.27784627]
[1721536754439,0.59552,67168.0,67167.0,0.27784627]
[1721536754871,0.59552,67168.0,67167.0,0.27884627]
[1721536755040,0.59552,67168.0,67167.0,0.27784627]
[1721536755452,0.59652,67168.0,67167.0,0.27784627]
[1721536755648,0.59552,67168.0,67167.0,0.21664627]
[1721536755848,0.59552,67168.0,67167.0,0.21764627]
[1721536757199,0.59552,67168.0,67167.0,0.2176489]
[1721536757800,0.59552,67168.0,67167.0,0.2166489]
[1721536758217,0.59952,67168.0,67167.0,0.2166489]
[1721536758638,0.59552,67168.0,67167.0,0.2166489]
[1721536758839,0.59952,67168.0,67167.0,0.2166489]
[1721536759832,0.60352,67168.0,67167.0,0.2166489]
[1721536760075,0.60352,67168.0,67167.0,0.09300526]
[1721536760240,0.60352,67168.0,67167.0,0.21664886]
[1721536760464,0.59952,67168.0,67167.0,0.21664886]
[1721536760641,0.59952,67168.0,67167.0,0.13947407]
[1721536760642,0.980528,67168.0,67167.0,0.13947407]
[1721536761028,0.980528,67168.0,67167.0,0.1245676]
[1721536763293,0.980528,67168.0,67167.0,0.000924]
[1721536763530,0.980528,67168.0,67167.0,0.12457246]
[1721536766541,0.980528,67168.0,67167.0,0.12457283]
[1721536766721,1.13490974,67168.0,67167.0,0.12457283]
[1721536766921,1.13490974,67168.0,67167.0,0.12457478]
[1721536768727,1.13490974,67168.0,67167.0,0.12457442]
[1721536769811,1.13490974,67168.0,67167.0,0.124574]
[1721536771241,1.23490974,67168.0,67167.0,0.124574]
[1721536772861,1.23490974,67168.0,67167.0,0.000924]
[1721536773059,1.23490974,67168.0,67167.0,0.12457521]
[1721536774662,1.17290974,67168.0,67167.0,0.12457521]
[1721536776203,1.17290974,67168.0,67167.0,0.12457529]
[1721536777620,1.09610974,67168.0,67167.0,0.12457529]